[Event "*** Titled Tuesday Blitz"]
[Site "Chess.com"]
[Date "2019.02.05"]
[Round "2"]
[White "severomorskij"]
[Black "nocnypako"]
[Result "1-0"]
[WhiteElo "2713"]
[BlackElo "2295"]
[TimeControl "180+2"]
[EndTime "13:23:16 PST"]
[Termination "severomorskij won on time"]

1. d4 {[%clk 0:03:01.9]} 1... Nf6 {[%clk 0:02:57.9]} 2. Bg5 {[%clk 0:03:02.3]}
2... e6 {[%clk 0:02:57.2]} 3. e4 {[%clk 0:03:02.8]} 3... h6 {[%clk 0:02:57.5]}
4. Bxf6 {[%clk 0:03:04]} 4... Qxf6 {[%clk 0:02:58]} 5. c3 {[%clk 0:03:05.4]}
5... Nc6 {[%clk 0:02:52.9]} 6. Bd3 {[%clk 0:02:59.5]} 6... g5 {[%clk 0:02:46.9]}
7. Ne2 {[%clk 0:03:00]} 7... h5 {[%clk 0:02:40]} 8. O-O {[%clk 0:03:00.3]} 8...
h4 {[%clk 0:02:40.8]} 9. f4 {[%clk 0:03:00.5]} 9... g4 {[%clk 0:02:40.9]} 10.
Na3 {[%clk 0:02:54.2]} 10... Bxa3 {[%clk 0:02:39.8]} 11. bxa3 {[%clk 0:02:55]}
11... b6 {[%clk 0:02:36.4]} 12. a4 {[%clk 0:02:30]} 12... Bb7 {[%clk 0:02:37.2]}
13. Rb1 {[%clk 0:02:29.9]} 13... O-O-O {[%clk 0:02:37]} 14. Nc1 {[%clk
0:02:26.9]} 14... Nxd4 {[%clk 0:02:26.8]} 15. e5 {[%clk 0:02:08.1]} 15... Nf3+
{[%clk 0:02:05.4]} 16. gxf3 {[%clk 0:02:00.4]} 16... Qxf4 {[%clk 0:01:58.8]} 17.
fxg4 {[%clk 0:01:25.9]} 17... Qxe5 {[%clk 0:01:58.5]} 18. Rb5 {[%clk 0:00:50.3]}
18... c5 {[%clk 0:01:54.3]} 19. Qe2 {[%clk 0:00:39.3]} 19... Qxc3 {[%clk
0:01:42.4]} 20. Nb3 {[%clk 0:00:36]} 20... Rhg8 {[%clk 0:01:33.3]} 21. Be4
{[%clk 0:00:15.9]} 21... Bxe4 {[%clk 0:00:56.3]} 22. Qxe4 {[%clk 0:00:16.1]}
22... d5 {[%clk 0:00:57.9]} 23. Qf4 {[%clk 0:00:10.2]} 23... f5 {[%clk
0:00:51.6]} 24. g5 {[%clk 0:00:11.4]} 24... Qf6 {[%clk 0:00:51.9]} 25. Kh1
{[%clk 0:00:11.6]} 25... Qxg5 {[%clk 0:00:49.3]} 26. Qxg5 {[%clk 0:00:12.7]}
26... Rxg5 {[%clk 0:00:50.9]} 27. a5 {[%clk 0:00:14]} 27... Kc7 {[%clk
0:00:50.8]} 28. axb6+ {[%clk 0:00:15.2]} 28... axb6 {[%clk 0:00:52.5]} 29. a4
{[%clk 0:00:16.5]} 29... Kc6 {[%clk 0:00:40.6]} 30. Nd2 {[%clk 0:00:17.3]} 30...
Ra8 {[%clk 0:00:28.1]} 31. Rfb1 {[%clk 0:00:17.8]} 31... Ra6 {[%clk 0:00:17.9]}
32. Nf3 {[%clk 0:00:18.9]} 32... Rg8 {[%clk 0:00:19.2]} 33. Nxh4 {[%clk
0:00:17.1]} 33... Rg4 {[%clk 0:00:19.2]} 34. Nf3 {[%clk 0:00:17.8]} 34... Rgxa4
{[%clk 0:00:20.7]} 35. h4 {[%clk 0:00:17.1]} 35... Ra3 {[%clk 0:00:20.5]} 36.
Kg2 {[%clk 0:00:17.1]} 36... d4 {[%clk 0:00:14.1]} 37. h5 {[%clk 0:00:17.7]}
37... d3 {[%clk 0:00:13.5]} 38. h6 {[%clk 0:00:18.6]} 38... Ra2+ {[%clk
0:00:14.1]} 39. Kg3 {[%clk 0:00:19.3]} 39... R2a5 {[%clk 0:00:14.6]} 40. h7
{[%clk 0:00:12.5]} 40... Ra8 {[%clk 0:00:15.1]} 41. Rxb6+ {[%clk 0:00:12.9]}
41... Kd5 {[%clk 0:00:16.4]} 42. Rb8 {[%clk 0:00:14.1]} 1-0

[Event "*** Titled Tuesday Blitz"]
[Site "Chess.com"]
[Date "2019.02.05"]
[Round "2"]
[White "Mikhail_Golubev"]
[Black "JoachimMouhamad"]
[Result "1-0"]
[WhiteElo "2463"]
[BlackElo "2290"]
[TimeControl "180+2"]
[EndTime "13:23:19 PST"]
[Termination "Mikhail_Golubev won by resignation"]

1. e4 {[%clk 0:03:01.9]} 1... c6 {[%clk 0:01:05.1]} 2. d4 {[%clk 0:02:59.1]}
2... d5 {[%clk 0:01:05.1]} 3. Nc3 {[%clk 0:02:59.7]} 3... dxe4 {[%clk
0:01:05.8]} 4. Nxe4 {[%clk 0:03:00.6]} 4... Nf6 {[%clk 0:01:07.7]} 5. Nxf6+
{[%clk 0:03:01.2]} 5... exf6 {[%clk 0:01:09.1]} 6. c3 {[%clk 0:03:02]} 6... Bd6
{[%clk 0:01:10.5]} 7. Bd3 {[%clk 0:03:02.4]} 7... O-O {[%clk 0:01:12.2]} 8. Ne2
{[%clk 0:03:01.3]} 8... Re8 {[%clk 0:01:13.5]} 9. Qc2 {[%clk 0:03:02.1]} 9... h5
{[%clk 0:01:14.6]} 10. Be3 {[%clk 0:02:56.5]} 10... Be6 {[%clk 0:01:14.6]} 11.
O-O-O {[%clk 0:02:53.7]} 11... Na6 {[%clk 0:01:15.4]} 12. Kb1 {[%clk 0:02:51.1]}
12... b5 {[%clk 0:01:16.6]} 13. g4 {[%clk 0:02:35.6]} 13... h4 {[%clk
0:01:07.8]} 14. g5 {[%clk 0:02:30.5]} 14... fxg5 {[%clk 0:01:07.5]} 15. Rhg1
{[%clk 0:02:23.7]} 15... f6 {[%clk 0:01:08.4]} 16. Bh7+ {[%clk 0:02:20.1]} 16...
Kh8 {[%clk 0:01:08.3]} 17. Qg6 {[%clk 0:02:14.7]} 17... Re7 {[%clk 0:01:04.4]}
18. Qh5 {[%clk 0:02:07.4]} 18... Bf7 {[%clk 0:00:57.4]} 19. Bg6+ {[%clk
0:02:06.8]} 19... Kg8 {[%clk 0:00:59]} 20. Qh7+ {[%clk 0:01:52.5]} 20... Kf8
{[%clk 0:01:00.3]} 21. Qh8+ {[%clk 0:01:51.2]} 21... Bg8 {[%clk 0:01:00.4]} 22.
Bxg5 {[%clk 0:01:43.9]} 22... Rxe2 {[%clk 0:00:52.7]} 23. Bh7 {[%clk 0:01:09.9]}
23... Kf7 {[%clk 0:00:36.3]} 24. Bg6+ {[%clk 0:00:57.6]} 24... Kxg6 {[%clk
0:00:31]} 25. Be3+ {[%clk 0:00:45.6]} 25... Kf5 {[%clk 0:00:29.4]} 26. Qh5+
{[%clk 0:00:28.5]} 26... g5 {[%clk 0:00:21]} 27. Qxe2 {[%clk 0:00:27]} 27... Kg6
{[%clk 0:00:13.8]} 28. f4 {[%clk 0:00:28.1]} 28... Bd5 {[%clk 0:00:11.9]} 29.
f5+ {[%clk 0:00:26.4]} 29... Kh6 {[%clk 0:00:10.5]} 30. Qg4 {[%clk 0:00:24.8]}
30... Be7 {[%clk 0:00:10.1]} 31. Qxh4+ {[%clk 0:00:23.3]} 31... Kg7 {[%clk
0:00:10.7]} 32. Rde1 {[%clk 0:00:23.4]} 32... Qh8 {[%clk 0:00:10.5]} 33. Qg4
{[%clk 0:00:20]} 33... Re8 {[%clk 0:00:09.5]} 34. h4 {[%clk 0:00:20.4]} 34...
Kf8 {[%clk 0:00:08.5]} 35. hxg5 {[%clk 0:00:21.1]} 35... fxg5 {[%clk 0:00:09.8]}
36. f6 {[%clk 0:00:21.7]} 36... Qxf6 {[%clk 0:00:09.9]} 37. Ref1 {[%clk
0:00:21.7]} 37... Bf7 {[%clk 0:00:04.4]} 38. Rxf6 {[%clk 0:00:21.1]} 38... Bxf6
{[%clk 0:00:06.3]} 39. Bxg5 {[%clk 0:00:22]} 39... Bg7 {[%clk 0:00:07.2]} 40.
Qf4 {[%clk 0:00:21.6]} 40... Kg8 {[%clk 0:00:03.5]} 41. Bf6 {[%clk 0:00:20.6]}
1-0

[Event "*** Titled Tuesday Blitz"]
[Site "Chess.com"]
[Date "2019.02.05"]
[Round "2"]
[White "Fy_Rakotomaharo"]
[Black "volcanoexplorer"]
[Result "1-0"]
[WhiteElo "2458"]
[BlackElo "2359"]
[TimeControl "180+2"]
[EndTime "13:23:19 PST"]
[Termination "Fy_Rakotomaharo won by checkmate"]

1. d4 {[%clk 0:03:01.9]} 1... Nf6 {[%clk 0:03:00.8]} 2. c4 {[%clk 0:03:00.7]}
2... e6 {[%clk 0:03:02]} 3. Nc3 {[%clk 0:03:01.5]} 3... Bb4 {[%clk 0:03:02.8]}
4. e3 {[%clk 0:03:03]} 4... O-O {[%clk 0:03:02.8]} 5. Ne2 {[%clk 0:03:04]} 5...
b6 {[%clk 0:03:03.2]} 6. a3 {[%clk 0:03:04.5]} 6... Bxc3+ {[%clk 0:03:03.9]} 7.
Nxc3 {[%clk 0:03:05.7]} 7... Bb7 {[%clk 0:03:05.3]} 8. Bd3 {[%clk 0:03:02.4]}
8... d6 {[%clk 0:03:05.5]} 9. O-O {[%clk 0:03:01.8]} 9... Nbd7 {[%clk
0:03:05.1]} 10. e4 {[%clk 0:03:01.3]} 10... Qe7 {[%clk 0:02:50.9]} 11. Bg5
{[%clk 0:02:57.4]} 11... h6 {[%clk 0:02:51.1]} 12. Bh4 {[%clk 0:02:58.8]} 12...
e5 {[%clk 0:02:49.4]} 13. d5 {[%clk 0:02:59.4]} 13... g5 {[%clk 0:02:41]} 14.
Bg3 {[%clk 0:02:59.5]} 14... Nh7 {[%clk 0:02:36.3]} 15. h4 {[%clk 0:02:50.9]}
15... Kg7 {[%clk 0:02:07.7]} 16. b4 {[%clk 0:02:45.4]} 16... Bc8 {[%clk
0:01:59]} 17. Nb5 {[%clk 0:02:34.9]} 17... Ndf6 {[%clk 0:01:53.6]} 18. c5 {[%clk
0:02:32.9]} 18... a6 {[%clk 0:01:40.1]} 19. Nc3 {[%clk 0:01:43.8]} 19... Bg4
{[%clk 0:01:25.8]} 20. f3 {[%clk 0:01:35.9]} 20... Bd7 {[%clk 0:01:16.7]} 21.
hxg5 {[%clk 0:01:25.3]} 21... hxg5 {[%clk 0:01:16.1]} 22. Bf2 {[%clk 0:01:02]}
22... bxc5 {[%clk 0:00:52.2]} 23. bxc5 {[%clk 0:01:02.4]} 23... Nh5 {[%clk
0:00:52.6]} 24. g3 {[%clk 0:00:57]} 24... N7f6 {[%clk 0:00:53.6]} 25. Qd2 {[%clk
0:00:48.8]} 25... Ne8 {[%clk 0:00:45.4]} 26. c6 {[%clk 0:00:47.2]} 26... Bc8
{[%clk 0:00:46.1]} 27. Kg2 {[%clk 0:00:47.7]} 27... g4 {[%clk 0:00:38.6]} 28.
Be2 {[%clk 0:00:42.4]} 28... f5 {[%clk 0:00:37.3]} 29. Rh1 {[%clk 0:00:39.9]}
29... Nef6 {[%clk 0:00:29.7]} 30. exf5 {[%clk 0:00:40]} 30... Bxf5 {[%clk
0:00:26.3]} 31. fxg4 {[%clk 0:00:39.6]} 31... Ne4 {[%clk 0:00:24]} 32. Qe3
{[%clk 0:00:14.3]} 32... Nxc3 {[%clk 0:00:19.2]} 33. Rxh5 {[%clk 0:00:14.6]}
33... Be4+ {[%clk 0:00:19.3]} 34. Kg1 {[%clk 0:00:14]} 34... Qf6 {[%clk
0:00:19.3]} 35. Rf1 {[%clk 0:00:08.5]} 35... Bg6 {[%clk 0:00:19]} 36. Qh6+
{[%clk 0:00:08.5]} 36... Kf7 {[%clk 0:00:10.9]} 37. Be3 {[%clk 0:00:09.1]} 37...
Nxe2+ {[%clk 0:00:12]} 38. Kg2 {[%clk 0:00:10.5]} 38... Be4+ {[%clk 0:00:09.9]}
39. Kh2 {[%clk 0:00:11.4]} 39... Qxf1 {[%clk 0:00:10]} 40. Qe6+ {[%clk
0:00:12.2]} 40... Kg7 {[%clk 0:00:09.8]} 41. Bh6+ {[%clk 0:00:13.8]} 41... Kh8
{[%clk 0:00:09.3]} 42. Bxf8+ {[%clk 0:00:13.3]} 42... Bh7 {[%clk 0:00:10.3]} 43.
Rxh7+ {[%clk 0:00:14.9]} 43... Kxh7 {[%clk 0:00:11.5]} 44. Qh6+ {[%clk
0:00:16.5]} 44... Kg8 {[%clk 0:00:12.1]} 45. Qg7# {[%clk 0:00:18.4]} 1-0

[Event "*** Titled Tuesday Blitz"]
[Site "Chess.com"]
[Date "2019.02.05"]
[Round "2"]
[White "SerkanSoysal"]
[Black "eljanov"]
[Result "0-1"]
[WhiteElo "2560"]
[BlackElo "2816"]
[TimeControl "180+2"]
[EndTime "13:23:22 PST"]
[Termination "eljanov won by resignation"]

1. Nf3 {[%clk 0:03:01.9]} 1... d5 {[%clk 0:02:58.9]} 2. d4 {[%clk 0:03:01.2]}
2... Nf6 {[%clk 0:02:56.2]} 3. Bf4 {[%clk 0:03:01.1]} 3... c5 {[%clk 0:02:56.2]}
4. c3 {[%clk 0:03:00.6]} 4... Qb6 {[%clk 0:02:55.2]} 5. Qb3 {[%clk 0:02:55]}
5... Nc6 {[%clk 0:02:51.4]} 6. e3 {[%clk 0:02:41.7]} 6... c4 {[%clk 0:02:52.2]}
7. Qxb6 {[%clk 0:02:42.9]} 7... axb6 {[%clk 0:02:52.9]} 8. Na3 {[%clk
0:02:44.5]} 8... Bf5 {[%clk 0:02:43.8]} 9. Nb5 {[%clk 0:02:41]} 9... Ra5 {[%clk
0:02:40.6]} 10. a4 {[%clk 0:02:39.8]} 10... Bc2 {[%clk 0:02:29.7]} 11. Nc7+
{[%clk 0:02:03.8]} 11... Kd7 {[%clk 0:02:27.8]} 12. Ng5 {[%clk 0:01:36.8]} 12...
Nd8 {[%clk 0:02:28.6]} 13. Kd2 {[%clk 0:00:52.7]} 13... Bxa4 {[%clk 0:02:23.9]}
14. b4 {[%clk 0:00:46.2]} 14... Ra7 {[%clk 0:01:59.7]} 15. Nb5 {[%clk 0:00:24]}
15... Ra6 {[%clk 0:01:24]} 16. Nc7 {[%clk 0:00:24.7]} 16... b5 {[%clk
0:01:24.6]} 17. Nxa6 {[%clk 0:00:23.1]} 17... bxa6 {[%clk 0:01:25.8]} 18. f3
{[%clk 0:00:21.4]} 18... Nh5 {[%clk 0:01:20.6]} 19. Nh3 {[%clk 0:00:20.8]} 19...
Nc6 {[%clk 0:01:18.3]} 20. Be2 {[%clk 0:00:18.1]} 20... e6 {[%clk 0:01:16.2]}
21. Bd1 {[%clk 0:00:16.6]} 21... Bxd1 {[%clk 0:01:04.4]} 22. Rhxd1 {[%clk
0:00:18.5]} 22... a5 {[%clk 0:01:05.5]} 23. bxa5 {[%clk 0:00:19.2]} 23... Nxf4
{[%clk 0:01:04.8]} 24. Nxf4 {[%clk 0:00:16.8]} 24... Bd6 {[%clk 0:01:05.5]} 25.
g3 {[%clk 0:00:16.5]} 25... b4 {[%clk 0:01:05.3]} 26. cxb4 {[%clk 0:00:16.1]}
26... Bxb4+ {[%clk 0:01:06.2]} 27. Ke2 {[%clk 0:00:17.3]} 27... Nxa5 {[%clk
0:00:55.7]} 28. Rdb1 {[%clk 0:00:17.1]} 28... Nc6 {[%clk 0:00:56.8]} 29. Ra6
{[%clk 0:00:15.6]} 29... Rb8 {[%clk 0:00:56.9]} 30. Nh5 {[%clk 0:00:16]} 30...
g6 {[%clk 0:00:35.7]} 31. Nf6+ {[%clk 0:00:17]} 31... Kc7 {[%clk 0:00:37.1]} 32.
h4 {[%clk 0:00:14.1]} 32... h6 {[%clk 0:00:36.8]} 33. Ng4 {[%clk 0:00:14.7]}
33... h5 {[%clk 0:00:34.6]} 34. Ne5 {[%clk 0:00:08.8]} 34... Nxe5 {[%clk
0:00:32]} 35. dxe5 {[%clk 0:00:10.7]} 35... Rb7 {[%clk 0:00:33.4]} 36. f4 {[%clk
0:00:11.4]} 36... Bc5 {[%clk 0:00:26.7]} 37. Rxb7+ {[%clk 0:00:12]} 37... Kxb7
{[%clk 0:00:28]} 38. Ra2 {[%clk 0:00:12.6]} 38... Bb6 {[%clk 0:00:26.5]} 39. Kf3
{[%clk 0:00:09.8]} 39... Bc5 {[%clk 0:00:25]} 40. g4 {[%clk 0:00:10.6]} 40...
hxg4+ {[%clk 0:00:25.4]} 41. Kxg4 {[%clk 0:00:11.3]} 41... Kc6 {[%clk 0:00:27]}
42. Kg5 {[%clk 0:00:11.7]} 42... Bxe3 {[%clk 0:00:27.5]} 43. Re2 {[%clk
0:00:12.1]} 43... d4 {[%clk 0:00:28.2]} 44. Kf6 {[%clk 0:00:12.5]} 44... Kd5
{[%clk 0:00:28.5]} 45. Kxf7 {[%clk 0:00:13.8]} 45... Bxf4 {[%clk 0:00:29.8]} 46.
Kxg6 {[%clk 0:00:14.7]} 46... d3 {[%clk 0:00:31.3]} 47. Re1 {[%clk 0:00:13.3]}
47... d2 {[%clk 0:00:32.2]} 48. Rf1 {[%clk 0:00:14.2]} 48... Bxe5 {[%clk
0:00:33.3]} 49. h5 {[%clk 0:00:13.4]} 49... c3 {[%clk 0:00:34.7]} 50. h6 {[%clk
0:00:14.7]} 50... c2 {[%clk 0:00:36]} 0-1

[Event "*** Titled Tuesday Blitz"]
[Site "Chess.com"]
[Date "2019.02.05"]
[Round "2"]
[White "wanyaland"]
[Black "politeplayer"]
[Result "1-0"]
[WhiteElo "2072"]
[BlackElo "2014"]
[TimeControl "180+2"]
[EndTime "13:23:23 PST"]
[Termination "wanyaland won by resignation"]

1. d4 {[%clk 0:03:01.9]} 1... d5 {[%clk 0:02:59.9]} 2. c4 {[%clk 0:03:02.6]}
2... e6 {[%clk 0:03:00.5]} 3. Nc3 {[%clk 0:02:59.6]} 3... c5 {[%clk 0:03:01.9]}
4. cxd5 {[%clk 0:02:59.6]} 4... cxd4 {[%clk 0:03:01.9]} 5. Qxd4 {[%clk
0:02:59.7]} 5... Nc6 {[%clk 0:03:01.4]} 6. Qd1 {[%clk 0:03:00.7]} 6... exd5
{[%clk 0:03:02.2]} 7. Nxd5 {[%clk 0:02:59.7]} 7... Qa5+ {[%clk 0:02:59.1]} 8.
Nc3 {[%clk 0:02:56.4]} 8... Bf5 {[%clk 0:02:54.5]} 9. Bd2 {[%clk 0:02:54.7]}
9... O-O-O {[%clk 0:02:48.7]} 10. Nf3 {[%clk 0:02:54.2]} 10... Nf6 {[%clk
0:02:36.9]} 11. e3 {[%clk 0:02:50.3]} 11... Nb4 {[%clk 0:02:36]} 12. Rc1 {[%clk
0:02:49.7]} 12... Nd3+ {[%clk 0:02:28.8]} 13. Bxd3 {[%clk 0:02:49.5]} 13... Bxd3
{[%clk 0:02:29.5]} 14. Qb3 {[%clk 0:02:45.5]} 14... Kb8 {[%clk 0:02:15.7]} 15.
Qxf7 {[%clk 0:02:43.3]} 15... Bd6 {[%clk 0:01:50.2]} 16. Nd4 {[%clk 0:02:24.2]}
16... Qg5 {[%clk 0:01:37.8]} 17. g3 {[%clk 0:02:19.3]} 17... Rhf8 {[%clk
0:01:26.7]} 18. Qb3 {[%clk 0:02:18.7]} 18... Ka8 {[%clk 0:01:27.2]} 19. Ncb5
{[%clk 0:02:16.2]} 19... Bxb5 {[%clk 0:01:17.9]} 20. Qxb5 {[%clk 0:02:16.2]}
20... Qg6 {[%clk 0:01:04.1]} 21. O-O {[%clk 0:02:12.6]} 21... Ne4 {[%clk
0:01:02.5]} 22. Ba5 {[%clk 0:02:10.8]} 22... Rde8 {[%clk 0:00:42.9]} 23. Bc7
{[%clk 0:02:05.1]} 23... Re5 {[%clk 0:00:28.9]} 24. Qa4 {[%clk 0:01:59.6]} 24...
Rh5 {[%clk 0:00:24.1]} 25. Bxd6 {[%clk 0:01:52.6]} 25... Nxd6 {[%clk 0:00:24.5]}
26. Qd7 {[%clk 0:01:51.4]} 26... Qh6 {[%clk 0:00:18.4]} 27. h4 {[%clk
0:01:26.7]} 27... g5 {[%clk 0:00:16.4]} 28. Ne6 {[%clk 0:01:17.4]} 28... gxh4
{[%clk 0:00:15.4]} 29. Nxf8 {[%clk 0:01:16.5]} 29... Qxf8 {[%clk 0:00:15.2]} 30.
g4 {[%clk 0:00:54.3]} 30... Rg5 {[%clk 0:00:14.3]} 31. f4 {[%clk 0:00:48.5]}
31... Rg7 {[%clk 0:00:13.8]} 32. Qe6 {[%clk 0:00:46.2]} 32... Rg6 {[%clk
0:00:13]} 33. Qd5 {[%clk 0:00:39.3]} 33... Rxg4+ {[%clk 0:00:13.5]} 34. Kh2
{[%clk 0:00:40.3]} 34... h3 {[%clk 0:00:13.1]} 35. Rg1 {[%clk 0:00:38.2]} 35...
Rg2+ {[%clk 0:00:11.3]} 36. Rxg2 {[%clk 0:00:37.4]} 36... hxg2 {[%clk
0:00:12.4]} 37. Kxg2 {[%clk 0:00:37.7]} 37... Nf5 {[%clk 0:00:14]} 38. Kf2
{[%clk 0:00:30.1]} 38... a6 {[%clk 0:00:12.7]} 39. Rc7 {[%clk 0:00:27.3]} 39...
Nd6 {[%clk 0:00:13.1]} 40. Rd7 {[%clk 0:00:26.5]} 40... Qh8 {[%clk 0:00:10.3]}
41. Qxd6 {[%clk 0:00:25.6]} 41... Qxb2+ {[%clk 0:00:10.8]} 42. Qd2 {[%clk
0:00:26.6]} 42... Qb5 {[%clk 0:00:07.7]} 43. Rd8+ {[%clk 0:00:27.3]} 43... Ka7
{[%clk 0:00:08.8]} 44. Qd4+ {[%clk 0:00:28.3]} 1-0

[Event "*** Titled Tuesday Blitz"]
[Site "Chess.com"]
[Date "2019.02.05"]
[Round "2"]
[White "gmcorrales"]
[Black "DanielMieles1985"]
[Result "1-0"]
[WhiteElo "2732"]
[BlackElo "2639"]
[TimeControl "180+2"]
[EndTime "13:23:26 PST"]
[Termination "gmcorrales won by resignation"]

1. e4 {[%clk 0:03:01.9]} 1... e5 {[%clk 0:03:00.9]} 2. Nf3 {[%clk 0:03:02.3]}
2... Nc6 {[%clk 0:03:01.9]} 3. d4 {[%clk 0:03:02]} 3... exd4 {[%clk 0:03:02.5]}
4. Nxd4 {[%clk 0:03:03.9]} 4... Bc5 {[%clk 0:03:03.5]} 5. Nb3 {[%clk 0:03:01.6]}
5... Bb6 {[%clk 0:03:04.2]} 6. Nc3 {[%clk 0:03:00]} 6... Nge7 {[%clk 0:03:04.7]}
7. Qe2 {[%clk 0:02:41.2]} 7... O-O {[%clk 0:03:02.8]} 8. Be3 {[%clk 0:02:41.7]}
8... f5 {[%clk 0:03:02.5]} 9. O-O-O {[%clk 0:01:41.7]} 9... fxe4 {[%clk
0:02:54.3]} 10. Bxb6 {[%clk 0:01:24.2]} 10... axb6 {[%clk 0:02:54.3]} 11. Qxe4
{[%clk 0:01:25.7]} 11... d6 {[%clk 0:02:36.2]} 12. f4 {[%clk 0:01:22.9]} 12...
Bf5 {[%clk 0:02:27.5]} 13. Qc4+ {[%clk 0:01:08.7]} 13... Kh8 {[%clk 0:02:25.3]}
14. g3 {[%clk 0:01:07.9]} 14... Na5 {[%clk 0:02:16.7]} 15. Nxa5 {[%clk
0:01:06.3]} 15... Rxa5 {[%clk 0:02:18.6]} 16. Bd3 {[%clk 0:01:06.6]} 16... d5
{[%clk 0:01:59.6]} 17. Qb3 {[%clk 0:01:00.6]} 17... c6 {[%clk 0:01:34.9]} 18.
Rhe1 {[%clk 0:01:00.6]} 18... Bxd3 {[%clk 0:01:26.6]} 19. Rxd3 {[%clk
0:01:01.3]} 19... Nf5 {[%clk 0:01:28.2]} 20. Rd2 {[%clk 0:01:01.2]} 20... Nd6
{[%clk 0:01:26.3]} 21. Rde2 {[%clk 0:01:00.1]} 21... Ra8 {[%clk 0:01:15.4]} 22.
a3 {[%clk 0:01:00.5]} 22... Nc4 {[%clk 0:01:10.2]} 23. Nd1 {[%clk 0:01:00.2]}
23... Qd6 {[%clk 0:01:04.8]} 24. Re6 {[%clk 0:01:00.1]} 24... Qc5 {[%clk
0:01:03]} 25. Qc3 {[%clk 0:00:59.9]} 25... d4 {[%clk 0:00:59.2]} 26. Qd3 {[%clk
0:01:00.6]} 26... Nxa3 {[%clk 0:00:57.2]} 27. R1e5 {[%clk 0:00:57.1]} 27... Qc4
{[%clk 0:00:36.2]} 28. bxa3 {[%clk 0:00:48.2]} 28... Qxd3 {[%clk 0:00:34.3]} 29.
cxd3 {[%clk 0:00:49.1]} 29... Rxa3 {[%clk 0:00:36]} 30. Re8 {[%clk 0:00:49.4]}
30... Kg8 {[%clk 0:00:34.7]} 31. Kc2 {[%clk 0:00:44.1]} 31... c5 {[%clk
0:00:34.4]} 32. R5e7 {[%clk 0:00:44.7]} 32... Rxe8 {[%clk 0:00:34.1]} 33. Rxe8+
{[%clk 0:00:45.9]} 33... Kf7 {[%clk 0:00:36]} 34. Rb8 {[%clk 0:00:47.3]} 34...
Ra7 {[%clk 0:00:35.5]} 35. Rc8 {[%clk 0:00:48.6]} 35... Ke6 {[%clk 0:00:35.6]}
36. Rc7 {[%clk 0:00:49.9]} 36... Kd5 {[%clk 0:00:36.5]} 37. Nb2 {[%clk
0:00:50.2]} 37... b5 {[%clk 0:00:37.3]} 38. Rd7+ {[%clk 0:00:50.4]} 38... Kc6
{[%clk 0:00:37.9]} 39. Rxg7 {[%clk 0:00:52.3]} 39... Ra3 {[%clk 0:00:32.2]} 40.
f5 {[%clk 0:00:37.4]} 40... Ra1 {[%clk 0:00:29.9]} 41. Rxh7 {[%clk 0:00:37.1]}
41... Rf1 {[%clk 0:00:26.4]} 42. g4 {[%clk 0:00:38.3]} 42... Rf2+ {[%clk
0:00:27.6]} 43. Kb3 {[%clk 0:00:38.8]} 43... Rf3 {[%clk 0:00:25.5]} 44. Ka2
{[%clk 0:00:39]} 44... Rf2 {[%clk 0:00:24.8]} 45. Rh8 {[%clk 0:00:30.4]} 45...
c4 {[%clk 0:00:24.2]} 46. dxc4 {[%clk 0:00:31]} 46... bxc4 {[%clk 0:00:24.6]}
47. Rc8+ {[%clk 0:00:32.3]} 47... Kd5 {[%clk 0:00:25.8]} 48. Rxc4 {[%clk
0:00:34.2]} 48... d3 {[%clk 0:00:19.6]} 49. Rc8 {[%clk 0:00:30.9]} 49... d2
{[%clk 0:00:17.7]} 50. Rd8+ {[%clk 0:00:31.6]} 50... Ke5 {[%clk 0:00:18.6]} 51.
h4 {[%clk 0:00:32.1]} 51... Kf4 {[%clk 0:00:17]} 52. Nd3+ {[%clk 0:00:32.5]}
52... Kxg4 {[%clk 0:00:15.4]} 53. Nxf2+ {[%clk 0:00:34.4]} 1-0

[Event "*** Titled Tuesday Blitz"]
[Site "Chess.com"]
[Date "2019.02.05"]
[Round "2"]
[White "GianmarcoVaR"]
[Black "Sordis"]
[Result "1-0"]
[WhiteElo "2590"]
[BlackElo "2335"]
[TimeControl "180+2"]
[EndTime "13:23:30 PST"]
[Termination "GianmarcoVaR won by resignation"]

1. d4 {[%clk 0:03:01.9]} 1... Nf6 {[%clk 0:03:00]} 2. Nf3 {[%clk 0:03:03.2]}
2... g6 {[%clk 0:03:01]} 3. Bf4 {[%clk 0:03:04]} 3... Bg7 {[%clk 0:03:02.1]} 4.
Nbd2 {[%clk 0:03:04.5]} 4... O-O {[%clk 0:03:01.5]} 5. h3 {[%clk 0:03:02.6]}
5... d6 {[%clk 0:03:00.9]} 6. c3 {[%clk 0:03:03.5]} 6... c5 {[%clk 0:03:00.1]}
7. e3 {[%clk 0:03:03.8]} 7... b6 {[%clk 0:03:00.1]} 8. Bd3 {[%clk 0:03:00.8]}
8... Bb7 {[%clk 0:03:01.2]} 9. O-O {[%clk 0:03:01.6]} 9... Nbd7 {[%clk
0:03:01.6]} 10. Bh2 {[%clk 0:03:02.8]} 10... a6 {[%clk 0:02:58.1]} 11. a4 {[%clk
0:03:03.2]} 11... Ra7 {[%clk 0:02:59.1]} 12. Qe2 {[%clk 0:03:02.9]} 12... Qa8
{[%clk 0:02:58.5]} 13. Rfe1 {[%clk 0:02:55.8]} 13... Ne4 {[%clk 0:02:57.2]} 14.
Nc4 {[%clk 0:02:30.8]} 14... Rc8 {[%clk 0:02:37]} 15. Ncd2 {[%clk 0:02:04.6]}
15... Ndf6 {[%clk 0:02:31.4]} 16. Nc4 {[%clk 0:02:04.8]} 16... Nd7 {[%clk
0:02:32.1]} 17. Ncd2 {[%clk 0:02:05.9]} 17... Ndf6 {[%clk 0:02:32.5]} 18. Rec1
{[%clk 0:01:05.9]} 18... Nxd2 {[%clk 0:02:26.8]} 19. Qxd2 {[%clk 0:01:07.2]}
19... Bxf3 {[%clk 0:02:21.8]} 20. gxf3 {[%clk 0:01:08.5]} 20... Qxf3 {[%clk
0:02:21.8]} 21. Bf1 {[%clk 0:01:10.2]} 21... Ne4 {[%clk 0:02:01.8]} 22. Qc2
{[%clk 0:01:11.5]} 22... Ng5 {[%clk 0:02:01]} 23. Bg3 {[%clk 0:01:09.5]} 23...
Qf6 {[%clk 0:01:53.2]} 24. Qd1 {[%clk 0:01:03.5]} 24... h5 {[%clk 0:01:49.4]}
25. Bg2 {[%clk 0:01:02.4]} 25... Nh7 {[%clk 0:01:33.4]} 26. Qb3 {[%clk
0:00:56.3]} 26... cxd4 {[%clk 0:00:53.3]} 27. cxd4 {[%clk 0:00:45.8]} 27... Rb8
{[%clk 0:00:47]} 28. Rc6 {[%clk 0:00:40]} 28... Rab7 {[%clk 0:00:47.5]} 29. Rac1
{[%clk 0:00:40.8]} 29... Nf8 {[%clk 0:00:44.8]} 30. Rc8 {[%clk 0:00:40.5]} 30...
Rxc8 {[%clk 0:00:20.2]} 31. Rxc8 {[%clk 0:00:40.9]} 31... Rd7 {[%clk 0:00:21.4]}
32. Qxb6 {[%clk 0:00:39]} 32... h4 {[%clk 0:00:22.5]} 33. Bh2 {[%clk 0:00:38]}
33... e5 {[%clk 0:00:21.2]} 34. Qc6 {[%clk 0:00:14.3]} 34... Re7 {[%clk
0:00:17.2]} 35. d5 {[%clk 0:00:10.9]} 35... Kh7 {[%clk 0:00:15.2]} 36. Qxa6
{[%clk 0:00:11]} 36... Nd7 {[%clk 0:00:15.5]} 37. a5 {[%clk 0:00:09.2]} 37...
Nc5 {[%clk 0:00:15.5]} 38. Qc4 {[%clk 0:00:08.9]} 38... e4 {[%clk 0:00:15.3]}
39. b4 {[%clk 0:00:08.5]} 39... Qa1+ {[%clk 0:00:14.6]} 40. Qf1 {[%clk
0:00:09.6]} 40... Qxf1+ {[%clk 0:00:14.1]} 41. Bxf1 {[%clk 0:00:10.6]} 41... Nd3
{[%clk 0:00:14.3]} 42. Bxd6 {[%clk 0:00:10.1]} 42... Rd7 {[%clk 0:00:15.7]} 43.
Rc6 {[%clk 0:00:08.3]} 43... Bf8 {[%clk 0:00:15.8]} 44. Bxf8 {[%clk 0:00:08.2]}
44... Rxd5 {[%clk 0:00:17.3]} 45. a6 {[%clk 0:00:08.9]} 45... Rf5 {[%clk
0:00:16.4]} 46. Bxd3 {[%clk 0:00:09.4]} 46... exd3 {[%clk 0:00:17.6]} 47. Rd6
{[%clk 0:00:10.9]} 47... Kg8 {[%clk 0:00:18.2]} 48. Bh6 {[%clk 0:00:10.5]} 48...
Rb5 {[%clk 0:00:18.4]} 49. a7 {[%clk 0:00:11.2]} 49... Rb8 {[%clk 0:00:17.7]}
50. axb8=Q+ {[%clk 0:00:12.3]} 1-0